[Event "Titled Tuesday Blitz November 08 Early 2022"]
[White "Concio, Michael Jr."]
[Black "Maghsoodloo, Parham"]
[WhiteFideId "5217873"]
[BlackFideId "12539929"]
[WhiteElo "2717"]
[BlackElo "2911"]
[Result "0-1"]
[Round "07"]
[TimeControl "180+1"]
[Date "2022.11.09"]
[WhiteClock "0:00:10"]
[BlackClock "0:00:41"]

1. e4 {[%clk 0:03:00]}  e5 {[%clk 0:03:00]} 2. Nf3 {[%clk 0:03:01]}  Nc6 {[%clk 0:03:00]} 3. Bb5 {[%clk 0:03:01]}  a6 {[%clk 0:03:00]} 4. Ba4 {[%clk 0:03:01]}  Nf6 {[%clk 0:03:00]} 5. O-O {[%clk 0:03:01]}  Bc5 {[%clk 0:03:01]} 6. Nxe5 {[%clk 0:02:55]}  Nxe5 {[%clk 0:02:53]} 7. d4 {[%clk 0:02:55]}  Bxd4 {[%clk 0:02:50]} 8. Qxd4 {[%clk 0:02:56]}  Nc6 {[%clk 0:02:51]} 9. Bxc6 {[%clk 0:02:46]}  bxc6 {[%clk 0:02:51]} 10. e5 {[%clk 0:02:44]}  Nd5 {[%clk 0:02:51]} 11. c4 {[%clk 0:02:44]}  Ne7 {[%clk 0:02:51]} 12. e6 {[%clk 0:01:48]}  O-O {[%clk 0:02:32]} 13. exd7 {[%clk 0:01:42]}  Bxd7 {[%clk 0:02:32]} 14. Nc3 {[%clk 0:01:22]}  Nf5 {[%clk 0:02:29]} 15. Qc5 {[%clk 0:01:20]}  Qh4 {[%clk 0:02:25]} 16. b3 {[%clk 0:01:13]}  Rfe8 {[%clk 0:02:19]} 17. Bb2 {[%clk 0:01:12]}  Nd6 {[%clk 0:02:08]} 18. Rae1 {[%clk 0:01:07]}  h6 {[%clk 0:02:07]} 19. Qa5 {[%clk 0:00:54]}  Rec8 {[%clk 0:01:55]} 20. Na4 {[%clk 0:00:49]}  Bf5 {[%clk 0:01:51]} 21. Qe5 {[%clk 0:00:38]}  Qg5 {[%clk 0:01:50]} 22. Qg3 {[%clk 0:00:18]}  a5 {[%clk 0:01:43]} 23. Qxg5 {[%clk 0:00:17]}  hxg5 {[%clk 0:01:44]} 24. Be5 {[%clk 0:00:17]}  Nb7 {[%clk 0:01:41]} 25. Rd1 {[%clk 0:00:16]}  f6 {[%clk 0:01:41]} 26. Bg3 {[%clk 0:00:16]}  Kf7 {[%clk 0:01:40]} 27. Rd2 {[%clk 0:00:15]}  Be6 {[%clk 0:01:36]} 28. Re1 {[%clk 0:00:15]}  c5 {[%clk 0:01:27]} 29. h3 {[%clk 0:00:14]}  g4 {[%clk 0:01:25]} 30. hxg4 {[%clk 0:00:13]}  Bxg4 {[%clk 0:01:26]} 31. f3 {[%clk 0:00:14]}  Be6 {[%clk 0:01:25]} 32. Bf2 {[%clk 0:00:13]}  Rd8 {[%clk 0:01:23]} 33. Rde2 {[%clk 0:00:14]}  Ra6 {[%clk 0:01:22]} 34. Bxc5 {[%clk 0:00:13]}  Rd7 {[%clk 0:01:19]} 35. Ba3 {[%clk 0:00:12]}  g5 {[%clk 0:01:20]} 36. Kf2 {[%clk 0:00:12]}  Rc6 {[%clk 0:01:14]} 37. Nc3 {[%clk 0:00:10]}  Nd8 {[%clk 0:01:09]} 38. Rd1 {[%clk 0:00:10]}  Rxd1 {[%clk 0:01:08]} 39. Nxd1 {[%clk 0:00:10]}  a4 {[%clk 0:01:09]} 40. Nc3 {[%clk 0:00:10]}  axb3 {[%clk 0:01:09]} 41. axb3 {[%clk 0:00:11]}  Rb6 {[%clk 0:01:10]} 42. Rb2 {[%clk 0:00:08]}  Nb7 {[%clk 0:01:08]} 43. Ke3 {[%clk 0:00:07]}  Na5 {[%clk 0:01:08]} 44. Nb5 {[%clk 0:00:06]}  Bxc4 {[%clk 0:01:07]} 45. Nxc7 {[%clk 0:00:06]}  Bxb3 {[%clk 0:01:07]} 46. Kd4 {[%clk 0:00:03]}  Nc4 {[%clk 0:01:08]} 47. Kc5 {[%clk 0:00:03]}  Nxa3 {[%clk 0:00:52]} 48. Kxb6 {[%clk 0:00:03]}  Nc4+ {[%clk 0:00:53]} 49. Kc5 {[%clk 0:00:02]}  Nxb2 {[%clk 0:00:54]} 50. Kb4 {[%clk 0:00:03]}  Bd1 {[%clk 0:00:46]} 51. Kc3 {[%clk 0:00:03]}  Na4+ {[%clk 0:00:46]} 52. Kd2 {[%clk 0:00:03]}  Bb3 {[%clk 0:00:46]} 53. Ke3 {[%clk 0:00:04]}  Bc4 {[%clk 0:00:45]} 54. g3 {[%clk 0:00:03]}  Nc5 {[%clk 0:00:44]} 55. f4 {[%clk 0:00:03]}  gxf4+ {[%clk 0:00:44]} 56. gxf4 {[%clk 0:00:03]}  Ne6 {[%clk 0:00:45]} 57. Na8 {[%clk 0:00:03]}  f5 {[%clk 0:00:41]} 58. Nb6 {[%clk 0:00:03]}  Bb5 {[%clk 0:00:41]} 59. Nd5 {[%clk 0:00:03]}  Bc6 {[%clk 0:00:41]} 60. Nb4 {[%clk 0:00:03]}  Be4 {[%clk 0:00:41]} 61. Na2 {[%clk 0:00:04]}  Kg6 {[%clk 0:00:41]} 62. Nc3 {[%clk 0:00:04]}  Bc6 {[%clk 0:00:41]} 63. Ne2 {[%clk 0:00:05]}  Kh5 {[%clk 0:00:42]} 64. Ng3+ {[%clk 0:00:03]}  Kg4 {[%clk 0:00:42]} 65. Nxf5 {[%clk 0:00:04]}  Kxf5 {[%clk 0:00:43]} 66. Kd3 {[%clk 0:00:04]}  Kxf4 {[%clk 0:00:43]} 67. Kc3 {[%clk 0:00:04]}  Ke4 {[%clk 0:00:44]} 68. Kb2 {[%clk 0:00:05]}  Kd3 {[%clk 0:00:44]} 69. Kc1 {[%clk 0:00:05]}  Nd4 {[%clk 0:00:43]} 70. Kb1 {[%clk 0:00:06]}  Kc3 {[%clk 0:00:42]} 71. Ka1 {[%clk 0:00:07]}  Nc2+ {[%clk 0:00:42]} 72. Ka2 {[%clk 0:00:08]}  Bd5+ {[%clk 0:00:42]} 73. Kb1 {[%clk 0:00:09]}  Bc4 {[%clk 0:00:42]} 74. Kc1 {[%clk 0:00:09]}  Ba2 {[%clk 0:00:43]} 75. Kd1 {[%clk 0:00:10]}  Nd4 {[%clk 0:00:41]} 76. Kc1 {[%clk 0:00:11]}  Ne2+ {[%clk 0:00:41]} 77. Kd1 {[%clk 0:00:11]}  Kd3 {[%clk 0:00:42]} 78. Ke1 {[%clk 0:00:12]}  Ke3 {[%clk 0:00:42]} 79. Kd1 {[%clk 0:00:12]}  Bb3+ {[%clk 0:00:43]} 80. Ke1 {[%clk 0:00:13]}  Nf4 {[%clk 0:00:43]} 81. Kf1 {[%clk 0:00:14]}  Bc2 {[%clk 0:00:43]} 82. Kg1 {[%clk 0:00:13]}  Kf3 {[%clk 0:00:43]} 83. Kf1 {[%clk 0:00:10]}  Ng2 {[%clk 0:00:43]} 84. Kg1 {[%clk 0:00:10]}  Kg3 {[%clk 0:00:43]} 85. Kh1 {[%clk 0:00:10]}  Bd3 {[%clk 0:00:41]} 86. Kg1 {[%clk 0:00:10]}  Nh4 {[%clk 0:00:42]} 87. Kh1 {[%clk 0:00:10]}  Bf5 {[%clk 0:00:40]} 88. Kg1 {[%clk 0:00:10]}  Bh3 {[%clk 0:00:41]} 0-1


[Site "https://www.chess.com"]

[Event "Titled Tuesday Blitz November 08 Early 2022"]
[White "Csonka, Balazs"]
[Black "Ilkhomi, Jaloliddin"]
[WhiteFideId "742910"]
[BlackFideId "14700948"]
[WhiteElo "2404"]
[BlackElo "2045"]
[Result "0-1"]
[Round "07"]
[TimeControl "180+1"]
[Date "2022.11.09"]
[WhiteClock "0:00:02"]
[BlackClock "0:00:23"]

1. c4 {[%clk 0:03:00]}  e6 {[%clk 0:02:58]} 2. Nc3 {[%clk 0:02:58]}  d5 {[%clk 0:02:53]} 3. d4 {[%clk 0:02:54]}  Nf6 {[%clk 0:02:51]} 4. Nf3 {[%clk 0:02:52]}  b6 {[%clk 0:02:48]} 5. cxd5 {[%clk 0:02:40]}  exd5 {[%clk 0:02:46]} 6. Bg5 {[%clk 0:02:40]}  Be7 {[%clk 0:02:46]} 7. e3 {[%clk 0:02:40]}  O-O {[%clk 0:02:45]} 8. Bd3 {[%clk 0:02:32]}  c5 {[%clk 0:02:43]} 9. Qc2 {[%clk 0:01:46]}  h6 {[%clk 0:02:40]} 10. Bxf6 {[%clk 0:01:29]}  Bxf6 {[%clk 0:02:41]} 11. Nxd5 {[%clk 0:01:11]}  Qxd5 {[%clk 0:02:37]} 12. Be4 {[%clk 0:01:10]}  Qd7 {[%clk 0:02:23]} 13. Bxa8 {[%clk 0:01:09]}  Ba6 {[%clk 0:02:14]} 14. O-O-O {[%clk 0:00:59]}  cxd4 {[%clk 0:01:58]} 15. Kb1 {[%clk 0:00:53]}  d3 {[%clk 0:01:58]} 16. Qb3 {[%clk 0:00:50]}  Nc6 {[%clk 0:01:49]} 17. Bxc6 {[%clk 0:00:47]}  Qxc6 {[%clk 0:01:50]} 18. Rc1 {[%clk 0:00:34]}  Qe4 {[%clk 0:01:46]} 19. Nd2 {[%clk 0:00:28]}  Qe7 {[%clk 0:01:28]} 20. Qa3 {[%clk 0:00:20]}  Qb7 {[%clk 0:01:21]} 21. f3 {[%clk 0:00:18]}  Re8 {[%clk 0:01:18]} 22. Ne4 {[%clk 0:00:17]}  Be5 {[%clk 0:01:09]} 23. Nd6 {[%clk 0:00:13]}  Bxd6 {[%clk 0:01:02]} 24. Qxd6 {[%clk 0:00:14]}  Bb5 {[%clk 0:01:03]} 25. e4 {[%clk 0:00:12]}  Re7 {[%clk 0:00:51]} 26. Rhd1 {[%clk 0:00:10]}  Rd7 {[%clk 0:00:51]} 27. Qb4 {[%clk 0:00:10]}  Ba6 {[%clk 0:00:49]} 28. Rd2 {[%clk 0:00:10]}  Qb8 {[%clk 0:00:48]} 29. g3 {[%clk 0:00:09]}  Qd8 {[%clk 0:00:48]} 30. Qc3 {[%clk 0:00:09]}  Kh7 {[%clk 0:00:46]} 31. e5 {[%clk 0:00:09]}  Rd5 {[%clk 0:00:44]} 32. f4 {[%clk 0:00:09]}  Bb5 {[%clk 0:00:44]} 33. b3 {[%clk 0:00:09]}  a5 {[%clk 0:00:44]} 34. a4 {[%clk 0:00:07]}  Ba6 {[%clk 0:00:44]} 35. Kb2 {[%clk 0:00:07]}  Qe7 {[%clk 0:00:43]} 36. Qc7 {[%clk 0:00:07]}  Qb4 {[%clk 0:00:40]} 37. Qc3 {[%clk 0:00:07]}  Qe4 {[%clk 0:00:40]} 38. Qc7 {[%clk 0:00:05]}  Qd4+ {[%clk 0:00:38]} 39. Qc3 {[%clk 0:00:05]}  Qe3 {[%clk 0:00:39]} 40. Rcd1 {[%clk 0:00:05]}  Rc5 {[%clk 0:00:36]} 41. Rxd3 {[%clk 0:00:02]}  Rxc3 {[%clk 0:00:36]} 42. Rxe3 {[%clk 0:00:02]}  Rxe3 {[%clk 0:00:37]} 43. Rd7 {[%clk 0:00:02]}  Bc8 {[%clk 0:00:27]} 44. Rxf7 {[%clk 0:00:02]}  Be6 {[%clk 0:00:27]} 45. Re7 {[%clk 0:00:02]}  Bxb3 {[%clk 0:00:28]} 46. Rb7 {[%clk 0:00:01]}  Bxa4 {[%clk 0:00:24]} 47. Rxb6 {[%clk 0:00:02]}  Bd7 {[%clk 0:00:25]} 48. Kc2 {[%clk 0:00:02]}  Bf5+ {[%clk 0:00:26]} 49. Kd2 {[%clk 0:00:02]}  Rd3+ {[%clk 0:00:26]} 50. Ke2 {[%clk 0:00:03]}  a4 {[%clk 0:00:27]} 51. g4 {[%clk 0:00:03]}  Rb3 {[%clk 0:00:22]} 52. Ra6 {[%clk 0:00:02]}  Bd3+ {[%clk 0:00:22]} 53. Kd2 {[%clk 0:00:02]}  Bxa6 {[%clk 0:00:23]} 0-1


[Site "https://www.chess.com"]

[Event "Titled Tuesday Blitz November 08 Early 2022"]
[White "Dehtiarov, Roman"]
[Black "Mazurkiewicz, Michal"]
[WhiteFideId "14186640"]
[BlackFideId "1124943"]
[WhiteElo "2200"]
[BlackElo "2063"]
[Result "0-1"]
[Round "07"]
[TimeControl "180+1"]
[Date "2022.11.09"]
[WhiteClock "0:00:03"]
[BlackClock "0:00:04"]

1. e4 {[%clk 0:02:57]}  d6 {[%clk 0:03:00]} 2. d4 {[%clk 0:02:56]}  Nf6 {[%clk 0:03:00]} 3. Nc3 {[%clk 0:02:56]}  c6 {[%clk 0:03:01]} 4. f4 {[%clk 0:02:56]}  Qb6 {[%clk 0:03:01]} 5. Nf3 {[%clk 0:02:54]}  Bg4 {[%clk 0:03:01]} 6. Be2 {[%clk 0:02:50]}  e6 {[%clk 0:03:01]} 7. O-O {[%clk 0:02:48]}  d5 {[%clk 0:03:00]} 8. e5 {[%clk 0:02:46]}  Nfd7 {[%clk 0:03:01]} 9. Na4 {[%clk 0:02:46]}  Qa5 {[%clk 0:02:58]} 10. b3 {[%clk 0:02:40]}  c5 {[%clk 0:02:55]} 11. Bd2 {[%clk 0:02:34]}  Qc7 {[%clk 0:02:55]} 12. Be3 {[%clk 0:02:29]}  Bxf3 {[%clk 0:02:38]} 13. Bxf3 {[%clk 0:02:29]}  cxd4 {[%clk 0:02:39]} 14. Bxd4 {[%clk 0:02:29]}  Nc6 {[%clk 0:02:39]} 15. c3 {[%clk 0:02:27]}  b5 {[%clk 0:02:25]} 16. Nb2 {[%clk 0:02:25]}  Nxd4 {[%clk 0:01:50]} 17. cxd4 {[%clk 0:02:26]}  g6 {[%clk 0:01:51]} 18. Nd3 {[%clk 0:02:22]}  Qb6 {[%clk 0:01:50]} 19. Nf2 {[%clk 0:02:11]}  Ba3 {[%clk 0:01:47]} 20. Qd2 {[%clk 0:02:00]}  Rc8 {[%clk 0:01:43]} 21. Rad1 {[%clk 0:01:57]}  a5 {[%clk 0:01:37]} 22. Ng4 {[%clk 0:01:49]}  h5 {[%clk 0:01:36]} 23. Ne3 {[%clk 0:01:47]}  Bb4 {[%clk 0:01:16]} 24. Qf2 {[%clk 0:01:38]}  Rc3 {[%clk 0:01:01]} 25. Nxd5 {[%clk 0:01:11]}  exd5 {[%clk 0:01:00]} 26. Bxd5 {[%clk 0:01:12]}  O-O {[%clk 0:00:51]} 27. f5 {[%clk 0:01:09]}  Nxe5 {[%clk 0:00:38]} 28. fxg6 {[%clk 0:00:22]}  Nxg6 {[%clk 0:00:32]} 29. Qf5 {[%clk 0:00:17]}  Kg7 {[%clk 0:00:20]} 30. Kh1 {[%clk 0:00:16]}  f6 {[%clk 0:00:13]} 31. Rde1 {[%clk 0:00:13]}  Ne7 {[%clk 0:00:06]} 32. Qxh5 {[%clk 0:00:08]}  Nxd5 {[%clk 0:00:06]} 33. Qxd5 {[%clk 0:00:09]}  Qd6 {[%clk 0:00:04]} 34. Qxb5 {[%clk 0:00:06]}  Rh8 {[%clk 0:00:03]} 35. g3 {[%clk 0:00:03]}  Rxh2+ {[%clk 0:00:02]} 36. Kxh2 {[%clk 0:00:01]}  Qxg3+ {[%clk 0:00:02]} 37. Kh1 {[%clk 0:00:02]}  Qh3+ {[%clk 0:00:03]} 38. Kg1 {[%clk 0:00:03]}  Rg3+ {[%clk 0:00:03]} 39. Kf2 {[%clk 0:00:03]}  Qg2# {[%clk 0:00:04]} 0-1


[Site "https://www.chess.com"]

[Event "Titled Tuesday Blitz November 08 Early 2022"]
[White "Do Nascimento,Christian Almeida"]
[Black "Todorovic, Bojan"]
[WhiteFideId "2143801"]
[BlackFideId "917087"]
[WhiteElo "2079"]
[BlackElo "2266"]
[Result "1-0"]
[Round "07"]
[TimeControl "180+1"]
[Date "2022.11.09"]
[WhiteClock "0:00:03"]
[BlackClock "0:00:01"]

1. e4 {[%clk 0:03:00]}  g6 {[%clk 0:02:56]} 2. d4 {[%clk 0:02:58]}  Bg7 {[%clk 0:02:56]} 3. Nc3 {[%clk 0:02:53]}  d6 {[%clk 0:02:56]} 4. Be3 {[%clk 0:02:52]}  a6 {[%clk 0:02:53]} 5. Qd2 {[%clk 0:02:51]}  Nd7 {[%clk 0:02:52]} 6. O-O-O {[%clk 0:02:50]}  b5 {[%clk 0:02:52]} 7. Kb1 {[%clk 0:02:48]}  Bb7 {[%clk 0:02:51]} 8. f3 {[%clk 0:02:48]}  c5 {[%clk 0:02:27]} 9. dxc5 {[%clk 0:02:36]}  Nxc5 {[%clk 0:02:27]} 10. Bd4 {[%clk 0:02:07]}  Bxd4 {[%clk 0:02:12]} 11. Qxd4 {[%clk 0:02:08]}  Nf6 {[%clk 0:02:10]} 12. e5 {[%clk 0:02:04]}  Nfd7 {[%clk 0:01:57]} 13. exd6 {[%clk 0:01:46]}  e5 {[%clk 0:01:56]} 14. Qd2 {[%clk 0:01:41]}  O-O {[%clk 0:01:56]} 15. h4 {[%clk 0:01:35]}  Nf6 {[%clk 0:01:45]} 16. h5 {[%clk 0:01:35]}  b4 {[%clk 0:01:22]} 17. Ne4 {[%clk 0:01:03]}  Ncxe4 {[%clk 0:01:16]} 18. fxe4 {[%clk 0:01:03]}  Bxe4 {[%clk 0:01:17]} 19. hxg6 {[%clk 0:01:01]}  Bxg6 {[%clk 0:01:09]} 20. Nf3 {[%clk 0:00:58]}  Qa5 {[%clk 0:00:54]} 21. Nh4 {[%clk 0:00:50]}  Ne4 {[%clk 0:00:47]} 22. Qh6 {[%clk 0:00:47]}  Nc3+ {[%clk 0:00:43]} 23. bxc3 {[%clk 0:00:29]}  bxc3 {[%clk 0:00:43]} 24. Ka1 {[%clk 0:00:29]}  Qa3 {[%clk 0:00:38]} 25. Rb1 {[%clk 0:00:28]}  Rab8 {[%clk 0:00:37]} 26. Bc4 {[%clk 0:00:15]}  Rxb1+ {[%clk 0:00:21]} 27. Rxb1 {[%clk 0:00:14]}  Qxd6 {[%clk 0:00:20]} 28. Nf5 {[%clk 0:00:12]}  Qf6 {[%clk 0:00:17]} 29. g4 {[%clk 0:00:12]}  e4 {[%clk 0:00:08]} 30. Rf1 {[%clk 0:00:07]}  Qe5 {[%clk 0:00:04]} 31. Qg5 {[%clk 0:00:05]}  Re8 {[%clk 0:00:02]} 32. Bb3 {[%clk 0:00:04]}  e3 {[%clk 0:00:01]} 33. Nh6+ {[%clk 0:00:03]} 1-0


[Site "https://www.chess.com"]

[Event "Titled Tuesday Blitz November 08 Early 2022"]
[White "Estrada Nieto, Julian"]
[Black "Brown, Andrew"]
[WhiteFideId "5101018"]
[BlackFideId "3206513"]
[WhiteElo "2221"]
[BlackElo "2245"]
[Result "1-0"]
[Round "07"]
[TimeControl "180+1"]
[Date "2022.11.09"]
[WhiteClock "0:00:04"]
[BlackClock "0:00:02"]

1. e4 {[%clk 0:02:34]}  g6 {[%clk 0:03:00]} 2. d4 {[%clk 0:02:32]}  Bg7 {[%clk 0:03:00]} 3. Nf3 {[%clk 0:02:32]}  c6 {[%clk 0:03:00]} 4. Nc3 {[%clk 0:02:32]}  d5 {[%clk 0:03:00]} 5. h3 {[%clk 0:02:33]}  dxe4 {[%clk 0:02:46]} 6. Nxe4 {[%clk 0:02:34]}  Nf6 {[%clk 0:02:45]} 7. Nxf6+ {[%clk 0:02:34]}  exf6 {[%clk 0:02:43]} 8. Bc4 {[%clk 0:02:34]}  Qe7+ {[%clk 0:02:32]} 9. Be3 {[%clk 0:02:31]}  Qb4+ {[%clk 0:02:30]} 10. Nd2 {[%clk 0:02:31]}  Qxb2 {[%clk 0:02:28]} 11. O-O {[%clk 0:02:30]}  O-O {[%clk 0:02:25]} 12. Bb3 {[%clk 0:02:17]}  f5 {[%clk 0:02:03]} 13. Rb1 {[%clk 0:01:56]}  Qc3 {[%clk 0:02:00]} 14. Nf3 {[%clk 0:01:53]}  Qa5 {[%clk 0:01:43]} 15. Qc1 {[%clk 0:01:51]}  Nd7 {[%clk 0:01:20]} 16. Re1 {[%clk 0:01:41]}  Nf6 {[%clk 0:01:14]} 17. Ne5 {[%clk 0:01:38]}  Nd5 {[%clk 0:01:08]} 18. Bd2 {[%clk 0:01:26]}  Qc7 {[%clk 0:00:43]} 19. c4 {[%clk 0:01:24]}  Nf6 {[%clk 0:00:32]} 20. Bf4 {[%clk 0:01:24]}  Qd8 {[%clk 0:00:31]} 21. Rd1 {[%clk 0:01:19]}  Ne4 {[%clk 0:00:20]} 22. Nf3 {[%clk 0:01:07]}  Be6 {[%clk 0:00:18]} 23. Bh6 {[%clk 0:01:06]}  Qa5 {[%clk 0:00:13]} 24. Bxg7 {[%clk 0:01:05]}  Kxg7 {[%clk 0:00:14]} 25. d5 {[%clk 0:01:02]}  cxd5 {[%clk 0:00:14]} 26. cxd5 {[%clk 0:01:02]}  Bd7 {[%clk 0:00:14]} 27. Qb2+ {[%clk 0:00:53]}  f6 {[%clk 0:00:12]} 28. Nd4 {[%clk 0:00:33]}  Rac8 {[%clk 0:00:12]} 29. Ne6+ {[%clk 0:00:32]}  Bxe6 {[%clk 0:00:12]} 30. dxe6 {[%clk 0:00:32]}  Rfd8 {[%clk 0:00:10]} 31. Rd7+ {[%clk 0:00:23]}  Rxd7 {[%clk 0:00:08]} 32. exd7 {[%clk 0:00:23]}  Rd8 {[%clk 0:00:09]} 33. Qd4 {[%clk 0:00:18]}  Qb6 {[%clk 0:00:07]} 34. Qxb6 {[%clk 0:00:15]}  axb6 {[%clk 0:00:08]} 35. Bd5 {[%clk 0:00:14]}  Rxd7 {[%clk 0:00:07]} 36. Bxe4 {[%clk 0:00:14]}  fxe4 {[%clk 0:00:08]} 37. Rxb6 {[%clk 0:00:14]}  f5 {[%clk 0:00:09]} 38. Kf1 {[%clk 0:00:14]}  Kf7 {[%clk 0:00:08]} 39. Ke2 {[%clk 0:00:14]}  Ke7 {[%clk 0:00:09]} 40. h4 {[%clk 0:00:15]}  Kd8 {[%clk 0:00:09]} 41. Ke3 {[%clk 0:00:15]}  Kc7 {[%clk 0:00:09]} 42. Rf6 {[%clk 0:00:15]}  b5 {[%clk 0:00:07]} 43. h5 {[%clk 0:00:14]}  Rg7 {[%clk 0:00:06]} 44. h6 {[%clk 0:00:13]}  Rd7 {[%clk 0:00:06]} 45. Ra6 {[%clk 0:00:14]}  Kb7 {[%clk 0:00:06]} 46. Rf6 {[%clk 0:00:12]}  b4 {[%clk 0:00:06]} 47. Rf8 {[%clk 0:00:12]}  Kb6 {[%clk 0:00:06]} 48. Rg8 {[%clk 0:00:10]}  Kc5 {[%clk 0:00:05]} 49. Rg7 {[%clk 0:00:10]}  Kc6 {[%clk 0:00:04]} 50. Kf4 {[%clk 0:00:10]}  Rd2 {[%clk 0:00:04]} 51. Rxh7 {[%clk 0:00:08]}  Rxf2+ {[%clk 0:00:04]} 52. Ke3 {[%clk 0:00:08]}  Rxg2 {[%clk 0:00:04]} 53. Rh8 {[%clk 0:00:08]}  Rh2 {[%clk 0:00:04]} 54. Kd4 {[%clk 0:00:07]}  g5 {[%clk 0:00:03]} 55. h7 {[%clk 0:00:06]}  g4 {[%clk 0:00:04]} 56. Rc8+ {[%clk 0:00:05]}  Kd6 {[%clk 0:00:03]} 57. h8=Q {[%clk 0:00:06]}  Rxh8 {[%clk 0:00:02]} 58. Rxh8 {[%clk 0:00:07]}  Ke6 {[%clk 0:00:03]} 59. Ke3 {[%clk 0:00:07]}  Ke5 {[%clk 0:00:03]} 60. Re8+ {[%clk 0:00:07]}  Kd5 {[%clk 0:00:03]} 61. Kf4 {[%clk 0:00:08]}  g3 {[%clk 0:00:03]} 62. Kxg3 {[%clk 0:00:08]}  Kd4 {[%clk 0:00:04]} 63. Kf4 {[%clk 0:00:08]}  Kc3 {[%clk 0:00:04]} 64. Rd8 {[%clk 0:00:06]}  Kb2 {[%clk 0:00:04]} 65. Rd2+ {[%clk 0:00:06]}  Kc3 {[%clk 0:00:05]} 66. Rf2 {[%clk 0:00:06]}  Kd3 {[%clk 0:00:05]} 67. Rg2 {[%clk 0:00:05]}  Kd4 {[%clk 0:00:03]} 68. Rg3 {[%clk 0:00:05]}  Kc4 {[%clk 0:00:02]} 69. Rb3 {[%clk 0:00:05]}  Kd4 {[%clk 0:00:02]} 70. Re3 {[%clk 0:00:04]} 1-0


[Site "https://www.chess.com"]

[Event "Titled Tuesday Blitz November 08 Early 2022"]
[White "Farmani Anosheh, Armin"]
[Black "Jeet, Jain"]
[WhiteFideId "24613240"]
[BlackFideId "5073022"]
[WhiteElo "2289"]
[BlackElo "2067"]
[Result "0-1"]
[Round "07"]
[TimeControl "180+1"]
[Date "2022.11.09"]
[WhiteClock "0:01:03"]
[BlackClock "0:02:36"]

1. e4 {[%clk 0:03:00]}  Nc6 {[%clk 0:02:53]} 2. Nf3 {[%clk 0:02:59]}  d6 {[%clk 0:02:53]} 3. d4 {[%clk 0:02:59]}  Bg4 {[%clk 0:02:53]} 4. Nc3 {[%clk 0:02:34]}  Bxf3 {[%clk 0:02:53]} 5. gxf3 {[%clk 0:02:35]}  a6 {[%clk 0:02:52]} 6. Be3 {[%clk 0:02:34]}  e5 {[%clk 0:02:52]} 7. dxe5 {[%clk 0:02:33]}  dxe5 {[%clk 0:02:51]} 8. Nd5 {[%clk 0:02:31]}  Nge7 {[%clk 0:02:42]} 9. c3 {[%clk 0:02:17]}  Nxd5 {[%clk 0:02:41]} 10. exd5 {[%clk 0:02:15]}  Ne7 {[%clk 0:02:41]} 11. c4 {[%clk 0:01:25]}  Nf5 {[%clk 0:02:41]} 12. Bd2 {[%clk 0:01:25]}  Bc5 {[%clk 0:02:41]} 13. Bh3 {[%clk 0:01:25]}  Qh4 {[%clk 0:02:40]} 14. Qa4+ {[%clk 0:01:02]}  b5 {[%clk 0:02:36]} 15. cxb5 {[%clk 0:01:03]}  Qxa4 {[%clk 0:02:36]} 0-1


[Site "https://www.chess.com"]

[Event "Titled Tuesday Blitz November 08 Early 2022"]
[White "Fernandez Siles, Luis"]
[Black "Yurovskykh, Oleksandr"]
[WhiteFideId "2209420"]
[BlackFideId "14134020"]
[WhiteElo "2186"]
[BlackElo "2265"]
[Result "0-1"]
[Round "07"]
[TimeControl "180+1"]
[Date "2022.11.09"]
[WhiteClock "0:00:30"]
[BlackClock "0:01:53"]

1. e4 {[%clk 0:03:00]}  d5 {[%clk 0:02:59]} 2. exd5 {[%clk 0:02:59]}  Qxd5 {[%clk 0:03:00]} 3. Nc3 {[%clk 0:02:59]}  Qd8 {[%clk 0:03:00]} 4. d4 {[%clk 0:02:58]}  Nf6 {[%clk 0:03:01]} 5. Bc4 {[%clk 0:02:58]}  a6 {[%clk 0:03:01]} 6. Nf3 {[%clk 0:02:53]}  b5 {[%clk 0:03:00]} 7. Bb3 {[%clk 0:02:52]}  c5 {[%clk 0:03:01]} 8. dxc5 {[%clk 0:02:47]}  Qxd1+ {[%clk 0:03:00]} 9. Nxd1 {[%clk 0:02:48]}  e6 {[%clk 0:03:00]} 10. Be3 {[%clk 0:02:43]}  Bb7 {[%clk 0:02:59]} 11. Nc3 {[%clk 0:02:26]}  Nbd7 {[%clk 0:02:59]} 12. O-O {[%clk 0:02:14]}  Bxc5 {[%clk 0:02:58]} 13. Bxc5 {[%clk 0:02:09]}  Nxc5 {[%clk 0:02:59]} 14. Ne5 {[%clk 0:02:07]}  Ke7 {[%clk 0:02:55]} 15. Rad1 {[%clk 0:01:57]}  Rhd8 {[%clk 0:02:55]} 16. f3 {[%clk 0:01:54]}  Nfd7 {[%clk 0:02:35]} 17. Nxd7 {[%clk 0:01:47]}  Rxd7 {[%clk 0:02:36]} 18. Rxd7+ {[%clk 0:01:46]}  Kxd7 {[%clk 0:02:36]} 19. Rd1+ {[%clk 0:01:43]}  Ke7 {[%clk 0:02:36]} 20. Ne2 {[%clk 0:01:43]}  Rd8 {[%clk 0:02:33]} 21. Rxd8 {[%clk 0:01:40]}  Kxd8 {[%clk 0:02:34]} 22. c3 {[%clk 0:01:34]}  Nd3 {[%clk 0:02:32]} 23. Nd4 {[%clk 0:01:07]}  Nxb2 {[%clk 0:02:31]} 24. Kf2 {[%clk 0:01:03]}  Nd3+ {[%clk 0:02:31]} 25. Ke3 {[%clk 0:01:02]}  Nc5 {[%clk 0:02:32]} 26. Bc2 {[%clk 0:01:01]}  g6 {[%clk 0:02:31]} 27. h4 {[%clk 0:01:01]}  Ke7 {[%clk 0:02:29]} 28. g4 {[%clk 0:01:01]}  e5 {[%clk 0:02:28]} 29. Ne2 {[%clk 0:00:59]}  Ke6 {[%clk 0:02:26]} 30. g5 {[%clk 0:00:59]}  Bd5 {[%clk 0:02:25]} 31. a3 {[%clk 0:00:57]}  f5 {[%clk 0:02:25]} 32. f4 {[%clk 0:00:56]}  Bc4 {[%clk 0:02:17]} 33. Ng3 {[%clk 0:00:50]}  Kd5 {[%clk 0:02:02]} 34. h5 {[%clk 0:00:48]}  Ne6 {[%clk 0:02:02]} 35. Nxf5 {[%clk 0:00:41]}  gxf5 {[%clk 0:01:57]} 36. Bxf5 {[%clk 0:00:41]}  Nxf4 {[%clk 0:01:54]} 37. Bxh7 {[%clk 0:00:30]}  Nxh5 {[%clk 0:01:53]} 0-1


[Site "https://www.chess.com"]

[Event "Titled Tuesday Blitz November 08 Early 2022"]
[White "Forgacs, Attila Jr."]
[Black "Volkov, Maksim"]
[WhiteFideId "773654"]
[BlackFideId "54123070"]
[WhiteElo "2168"]
[BlackElo "2257"]
[Result "0-1"]
[Round "07"]
[TimeControl "180+1"]
[Date "2022.11.09"]
[WhiteClock "0:01:06"]
[BlackClock "0:02:15"]

1. e4 {[%clk 0:03:00]}  c5 {[%clk 0:02:58]} 2. Nf3 {[%clk 0:03:00]}  d6 {[%clk 0:02:58]} 3. d4 {[%clk 0:03:01]}  cxd4 {[%clk 0:02:59]} 4. Nxd4 {[%clk 0:03:02]}  Nf6 {[%clk 0:02:59]} 5. Nc3 {[%clk 0:03:03]}  a6 {[%clk 0:03:00]} 6. f3 {[%clk 0:03:03]}  e5 {[%clk 0:03:00]} 7. Nb3 {[%clk 0:03:03]}  Be7 {[%clk 0:03:01]} 8. Be3 {[%clk 0:03:04]}  Be6 {[%clk 0:03:00]} 9. Qd2 {[%clk 0:03:04]}  h5 {[%clk 0:03:01]} 10. Nd5 {[%clk 0:03:03]}  Nxd5 {[%clk 0:02:54]} 11. exd5 {[%clk 0:03:04]}  Bf5 {[%clk 0:02:55]} 12. O-O-O {[%clk 0:02:59]}  Nd7 {[%clk 0:02:55]} 13. Be2 {[%clk 0:02:59]}  Rc8 {[%clk 0:02:54]} 14. c3 {[%clk 0:02:49]}  b5 {[%clk 0:02:51]} 15. g4 {[%clk 0:02:49]}  hxg4 {[%clk 0:02:46]} 16. fxg4 {[%clk 0:02:49]}  Be4 {[%clk 0:02:46]} 17. g5 {[%clk 0:02:25]}  Rh3 {[%clk 0:02:33]} 18. Bg4 {[%clk 0:02:08]}  Rxe3 {[%clk 0:02:31]} 19. Bxd7+ {[%clk 0:01:55]}  Kxd7 {[%clk 0:02:30]} 20. Rhg1 {[%clk 0:01:33]}  Bxg5 {[%clk 0:02:24]} 21. Rg4 {[%clk 0:01:09]}  Rexc3+ {[%clk 0:02:16]} 22. bxc3 {[%clk 0:01:08]}  Bxd2+ {[%clk 0:02:16]} 23. Kxd2 {[%clk 0:01:06]}  Bf3 {[%clk 0:02:15]} 24. Rxg7 {[%clk 0:01:05]}  Bxd1 {[%clk 0:02:15]} 25. Rxf7+ {[%clk 0:01:06]}  Ke8 {[%clk 0:02:15]} 0-1


[Site "https://www.chess.com"]